Workbook

Sheet Codes
A1: Bitte auswählen…
A2: 10-11 Herstellung von Nahrungsmitteln
A3: 13-15 Herstellung von Textilien und Bekleidung
A4: 16-18 Herstellung von Holzwaren, Papier und Druckerzeugnissen
A5: 19-20 Kokerei, Mineralölverarbeitung und Herstellung von chemischen Erzeugnissen
A6: 21 Herstellung von pharmazeutischen Erzeugnissen
A7: 22-23 Herstellung von Gummi- und Kunststoffwaren
A8: 24-25 Herstellung von Metallerzeugnissen
A9: 26 Herstellung von Datenverarbeitungsgeräten und Uhren
A10: 27 Herstellung von elektrischen Ausrüstungen
A11: 28 Maschinenbau
A12: 29-30 Fahrzeugbau
A13: 31-33 Sonstige Herstellung von Waren, Reparatur und Installation
A14: 35 Energieversorgung
A15: 36-39 Wasserversorgung, Beseitigung von Umweltverschmutzungen
A16: 41-43 Baugewerbe
A17: 45-46 Handel, Reparatur von Motorfahrzeugen und Grosshandel
A18: 47 Detailhandel
A19: 49-52 Landverkehr, Schifffahrt und Luftfahrt, Lagerei
A20: 53 Post-, Kurier- und Expressdienste
A21: 55-56 Gastgewerbe
A22: 58-60 Verlagswesen, audiovisuelle Medien und Rundfunk
A23: 61 Telekommunikation
A24: 62-63 Informationstechnologische und Informationsdienstleistungen
A25: 64, 66 Finanzdienstleistungen
A26: 65 Versicherungen
A27: 68 Grundstücks- und Wohnungswesen
A28: 69-71 Rechts- und Steuerberatung, Wirtschaftsprüfung, Verwaltung und Führung von Unternehmen, Architektur- und Ingenieurbüros
A29: 72 Forschung und Entwicklung
A30: 73-75 Sonstige freiberufliche, wissenschaftliche und technische Tätigkeiten
A31: 77/79-82 Erbringung von sonstigen wirtschaftlichen Dienstleistungen
A32: 78 Vermittlung und Überlassung von Arbeitskräften
A33: 85 Erziehung und Unterricht
A34: 86-88 Gesundheits- und Sozialwesen
A35: 90-93 Kunst, Unterhaltung und Erholung
A36: 94-95 Interessenvertretungen, religiöse Vereinigungen, Reparatur von Gebrauchsgütern
A37: 96 Sonstige persönliche Dienstleistungen
A44: Bitte auswählen…
A45: Ohne abgeschlossene Berufsausbildung
A46: Unternehmensinterne Ausbildung
A47: Abgeschlossene Berufsausbildung
A48: Maturität
A49: Höhere Berufsausbildung, höhere Fachschule
A50: Fachhochschule (FH), Pädagogische Hochschule (PH)
A51: Universitätre Hochschule (UNI, ETH)
A54: Bitte auswählen…
A55: Ohne Kaderfunktion
A56: Unterstes Kader
A57: Unteres Kader
A58: Mittleres Kader
A59: Oberes Kader
A63: Bitte auswählen…
A64: 11 GeschäftsführerInnen, Vorstände
A65: 12 Führungskräfte im kaufmännischen Bereich
A66: 13 Führungskräfte in der Produktion und bei speziellen Dienstleistungen
A67: 14 Führungskräfte in Hotels und Restaurants, im Handel und bei sonstigen Dienstleistungen
A68: 21 NaturwissenschaftlerInnen, MathematikerInnen und IngenieurInnen
A69: 22 Akademische und verwandte Gesundheitsberufe
A70: 23 Lehrkräfte
A71: 24 BetriebswirtschafterInnen und vergleichbare akademische Berufe
A72: 25 Akademische u. vergleichb. Fachkräfte in der Informations- u. Kommunikationstechnologie
A73: 26 JuristInnen, SozialwissenschaftlerInnen und Kulturberufe
A74: 31 Ingenieurtechnische und vergleichbare Fachkräfte
A75: 32 Assistenzberufe im Gesundheitswesen
A76: 33 Nicht akademische betriebswirtschaftliche u. kaufmännische Fachkräfte
A77: 34 Nicht akademische juristische, sozialpflegerische, kulturelle und verwandte Fachkräfte
A78: 35 Informations- und KommunikationstechnikerInnen
A79: 41 Allgemeine Büro- und Sekretariatskräfte
A80: 42 Bürokräfte mit Kundenkontakt
A81: 43 Bürokräfte im Finanz- u. Rechnungswesen, Statistik und Materialwirtschaft
A82: 44 Sonstige Bürokräfte und verwandte Berufe
A83: 51 Berufe im Bereich personenbezogener Dienstleistungen
A84: 52 Verkaufskräfte
A85: 53 Betreuungsberufe
A86: 54 Schutzkräfte und Sicherheitsbedienstete
A87: 61 Fachkräfte in der Landwirtschaft
A88: 71 Bau- u. Ausbaufachkräfte sowie verwandte Berufe, ausgen. ElektrikerInnen
A89: 72 MetallarbeiterInnen, MechanikerInnen und verwandte Berufe
A90: 73 PräzisionshandwerkerInnen, DruckerInnen und kunsthandwerkliche Berufe
A91: 74 ElektrikerInnen und ElektronikerInnen
A92: 75 Nahrungsmittel- u. Holzverarbeitung, Bekleidungsherstellung u. verwandte handwerkliche Berufe
A93: 81 Bedienen stationärer Anlagen und Maschinen
A94: 82 Montageberufe
A95: 83 Fahrzeugführen und Bedienen mobiler Anlagen
A96: 91 Reinigungspersonal und Hilfskräfte
A97: 92 Hilfskräfte in der Land-, Forstwirtschaft und Fischerei
A98: 93 Hilfskräfte im Bergbau, Bau, bei der Herstellung von Waren u. im Transportwesen
A99: 94 Hilfskräfte in der Nahrungsmittelzubereitung
A100: 96 Abfallentsorgungspersonal und sonstige Hilfsarbeitskräfte

Sheet Berechnungshilfe
A2: Berechnungshilfe zur Weisung "Vorgehen zum Internationaler Lohnvergleich"
A3: Entsendefirma | B3: Entsendefirma | F3: Einsatzort | G3: Bitte ausfüllen…
A4: Name, Vorname des Mitarbeiters | B4: Name, Vorname | F4: Branche | G4: Bitte auswählen…
A5: Geburtsdatum | B5: 2001-01-01 | D5: =DATEDIF(B5,B7,"Y") -> 21 | E5: Jahre | F5: Ausbildung | G5: Bitte auswählen…
A6: Im Betrieb seit | B6: 2001-01-01 | D6: =DATEDIF(B6,B7,"y") -> 21 | E6: Jahre | F6: Stellung im Betrieb | G6: Bitte auswählen…
A7: Kontrolldatum / Einsatz | B7: 2022-01-01 | C7: 01.01.2001 - | D7: 2001-01-01 | F7: Berufsgruppe | G7: Bitte auswählen…
A9: Herkunftsland (Angaben in Euro) / IST-Seite | F9: Vergleich Stundenlohn:
G10: Ist Herkunftsland | I10: Soll Schweiz | L10: % eines Monatsgehaltes
G11: CHF | H11: Euro | I11: Euro | J11: CHF | L11: Euro pro Jahr
F12: Grundlohn | G12: =$H12*$C$41 -> 0 | H12: =IF(D13="Euro pro Std.",C13,C13/((C21*52)/12)) -> 0 | I12: =$J12/$C$41 -> 0 | J12: =C34 -> 0 | L12: % (prozentualer Zuschlag auf den Stundenlohn)
A13: Grundlohn | C13: 0 | D13: Euro pro Std. | F13: Vermögenswirksame Leistungen | G13: =$H13*$C$41 -> 0 | H13: =C20/((52*C21)/12) -> 0 | L13: davon Nachtarbeit
A14: Einsatzdauer in Tagen | C14: 0 | D14: Tage | F14: Ferienentschädigung | G14: 0 | H14: =(H12+H13)*(C22/(260-C22)) -> 0 | I14: =$J14/$C$41 -> 0 | J14: =J12*(C35/(260-C35)) -> 0 | L14: davon Samstagsarbeit
A15: Anzahl Übernachtungen | C15: 0 | D15: Übernachtungen | F15: Feiertagsentschädigung | G15: 0 | H15: =(H12+H13)*(C23/(260-C23)) -> 0 | I15: =$J15/$C$41 -> 0 | J15: =J12*(C36/(260-C36)) -> 0 | L15: davon Sonntagsarbeit
A16: Einsatzdauer in Stunden | C16: 1e-16 | D16: Stunden | F16: 13. Monatslohn | G16: 0 | H16: =IF(D26="Euro pro Jahr",(H12+H13+H14+H15)*L27/100*1/12,IF(D26="% eines Monatsgehaltes",(H12+H13+H14+H15)*C26/100*1/12,(H12+H13+H14+H15)*C26/100)) -> 0 | I16: =$J16/$C$41 -> 0 | J16: =(J12+J14+J15)*(C37/100)*(1/12) -> 0 | L16: Euro pro Std.
A17: davon Nachtarbeit | C17: 0 | D17: Stunden | F17: 14. Monatslohn | G17: 0 | H17: =IF(D27="Euro pro Jahr",(H12+H13+H14+H15)*L28/100*1/12,IF(D27="% eines Monatsgehaltes",(H12+H13+H14+H15)*C27/100*1/12,(H12+H13+H14+H15)*C27/100)) -> 0 | I17: =$J17/$C$41 -> 0 | J17: =(J12+J14+J15)*(C38/100)*(1/12) -> 0 | L17: Euro pro Monat
A18: =IF(AND(A17=" davon Nachtarbeit",C17>0)," Zuschlag Nachtarbeit",IF(AND(A17=" davon Samstagsarbeit",C17>0)," Zuschlag Samstagsarbeit",IF(AND(A17=" davon Sonntagsarbeit",C17>0)," Zuschlag Sonntagsarbeit",""))) ->  | C18: 0 | D18: =IF(C17>0,"Euro pro Stunde","") ->  | F18: Urlaubsgeld | G18: 0 | H18: =IF(D28="Euro pro Jahr",(H12+H13+H14+H15)*(L29/100)*1/12,IF(D28="% eines Monatsgehaltes",(H12+H13+H14+H15)*(C28/100)*1/12,(H12+H13+H14+H15)*C28/100)) -> 0
A19: davon Reisezeit in der Schweiz | C19: 0 | D19: Stunden | F19: Weihnachtsgeld | G19: 0 | H19: =IF(D29="Euro pro Jahr",(H12+H13+H14+H15)*(L30/100)*1/12,IF(D29="% eines Monatsgehaltes",(H12+H13+H14+H15)*(C29/100)*1/12,(H12+H13+H14+H15)*C29/100)) -> 0
A20: Vermögenswirksame Leistungen | C20: 0 | D20: Euro pro Monat | F20: Entsendezulage | G20: 0 | H20: =C25 -> 0
A21: Arbeitsstunden pro Woche im Herkunftsland | C21: 1e-13 | D21: Stunden pro Woche | F21: Entsendeentschädigung | G21: 0 | H21: =IF(D24="Euro für die Einsatzdauer",(($C24)-((C15*C42)+(C14*C43))/C41)/C16,((C24*C14)-((C42*C15+C43*C14)/C41))/C16) -> 0
A22: Ferien | C22: 0 | D22: Tage | F22: Bruttostundenlohn | G22: =SUM(G$12:G$21) -> 0 | H22: =SUM(H$12:H$21) -> 0 | I22: =SUM(I$12:I$17)-I13 -> 0 | J22: =SUM(J$12:J$17)-J13 -> 0
A23: Feiertage | C23: 0 | D23: Tage
A24: Entsendeentschädigung | C24: 0 | D24: Euro pro Tag | G24: CHF | H24: Euro
A25: Entsendezulage | C25: 0 | D25: Euro pro Std. | F25: Differenz Bruttostundenlohn | G25: =G22-J22 -> 0 | H25: =H22-I22 -> 0 | L25: Euro für die Einsatzdauer
A26: 13. Monatslohn | C26: 0 | D26: % eines Monatsgehaltes | L26: Euro pro Tag
A27: 14. Monatslohn | C27: 0 | D27: % eines Monatsgehaltes | F27: =IF(AND(C17>0,A17=" davon Nachtarbeit"),"Vergleich Stundenlohn für Einsätze in der Nacht:",IF(AND(C17>0,A17=" davon Samstagsarbeit"),"Vergleich Stundenlohn für Einsätze an Samstagen:",IF(AND(C17>0,A17=" davon Sonntagsarbeit"),"Vergleich Stundenlohn für Einsätze an Sonntagen:",""))) ->  | L27: =C26/C30*100 -> 0
A28: Urlaubsgeld | C28: 0 | D28: % eines Monatsgehaltes | G28: =IF(C17>0,"Ist Herkunftsland","") ->  | I28: =IF(C17>0,"Soll Schweiz","") ->  | L28: =C27/C30*100 -> 0
A29: Weihnachtsgeld | C29: 0 | D29: Euro pro Jahr | F29: =IF(C17>0,"Grundlohn","") ->  | G29: =IF(C17>0,$H29*$C$41,"") ->  | H29: =IF(AND(C17>0,D13="Euro pro Std."),C13,IF(AND(C17>0,D13="Euro pro Monat"),C13/((C21*52)/12),"")) ->  | I29: =IF(C17>0,$J29/$C$41,"") ->  | J29: =IF(C17>0,C34,"") ->  | L29: =C28/C30*100 -> 0
A30: =IF(OR(D26="Euro pro Jahr",D27="Euro pro Jahr",D28="Euro pro Jahr",D29="Euro pro Jahr"),"Monatslohn","") -> Monatslohn | C30: 1e-15 | D30: =IF(A30="Monatslohn","Euro pro Monat","") -> Euro pro Monat | F30: =IF(A18=" Zuschlag Nachtarbeit","Zulage Nachtarbeit",IF(A18=" Zuschlag Samstagsarbeit","Zulage Samstagsarbeit", IF(A18=" Zuschlag Sonntagsarbeit","Zulage Sonntagsarbeit",""))) ->  | G30: =IF(C17>0,H30*C41,"") ->  | H30: =IF(C17>0,C18,"") ->  | I30: =IF(C17>0,$J$30/$C$41,"") ->  | J30: =IF(AND(C17>0,C39=""),J29*B39,IF(C17>0,J29*C39/100,"")) ->  | L30: =C29/C30*100 -> 0
F31: =IF(C17>0,"Vermögenswirksame Leistungen","") ->  | G31: =IF(C17>0,H31*C$41,"") ->  | H31: =IF(C17>0,C20/((52*C21)/12),"") -> 
A32: Schweiz (Angaben In CHF) / SOLL-Seite | F32: =IF(C17>0,"Ferienentschädigung","") ->  | G32: =IF(C17>0,$H32*$C$41,"") ->  | H32: =IF(C17>0,(H29+H31)*(C22/(260-C22)),"") ->  | I32: =IF(C17>0,$J32/$C$41,"") ->  | J32: =IF(C17>0,(J29)*(C35/(260-C35)),"") -> 
F33: =IF(C17>0,"Feiertagsentschädigung","") ->  | G33: =IF(C17>0,$H33*$C$41,"") ->  | H33: =IF(C17>0,(H29+H31)*(C23/(260-C23)),"") ->  | I33: =IF(C17>0,$J33/$C$41,"") ->  | J33: =IF(C17>0,(J29)*(C36/(260-C36)),"") -> 
A34: Grundlohn (pro Stunde) | C34: 0 | D34: CHF | F34: =IF(C17>0,"13. Monatslohn","") ->  | G34: =IF(C17>0,$H34*$C$41,"") ->  | H34: =IF(C17>0,IF(D26="Euro pro Jahr",(H12+H13+H14+H15)*L27/100*1/12,IF(D26="% eines Monatsgehaltes",(H12+H13+H14+H15)*C26/100*1/12,(H12+H13+H14+H15)*C26/100)),"") ->  | I34: =IF(C17>0,$J34/$C$41,"") ->  | J34: =IF(C17>0,(SUM(J29:J33)-J30)*(C37/100)*(1/12),"") -> 
A35: Ferien | C35: 0 | D35: Tage | F35: =IF(C17>0,"14. Monatslohn","") ->  | G35: =IF(C17>0,$H35*$C$41,"") ->  | H35: =IF(C17>0,IF(D27="Euro pro Jahr",(H12+H13+H14+H15)*L28/100*1/12,IF(D27="% eines Monatsgehaltes",(H12+H13+H14+H15)*C27/100*1/12,(H12+H13+H14+H15)*C27/100)),"") ->  | I35: =IF(C17>0,$J35/$C$41,"") ->  | J35: =IF(C17>0,(SUM(J29:J33)-J30)*(C38/100)*(1/12),"") -> 
A36: Feiertage | C36: 0 | D36: Tage | F36: =IF(C17>0,"Urlaubsgeld","") ->  | G36: =IF(C17>0,$H36*$C$41,"") ->  | H36: =IF(C17>0,IF(D28="Euro pro Jahr",(H12+H13+H14+H15)*L29/100*1/12,IF(D28="% eines Monatsgehaltes",(H12+H13+H14+H15)*C28/100*1/12,(H12+H13+H14+H15)*C28/100)),"") -> 
A37: 13. Monatslohn | C37: 0 | D37: % | F37: =IF(C17>0,"Weihnachtsgeld","") ->  | G37: =IF(C17>0,$H37*$C$41,"") ->  | H37: =IF(C17>0,IF(D29="Euro pro Jahr",(H12+H13+H14+H15)*L30/100*1/12,IF(D29="% eines Monatsgehaltes",(H12+H13+H14+H15)*C29/100*1/12,(H12+H13+H14+H15)*C29/100)),"") -> 
A38: 14. Monatslohn | C38: 0 | D38: % | F38: =IF(C17>0,"Entsendezulage","") ->  | G38: =IF(C17>0,$H38*$C$41,"") ->  | H38: =IF(C17>0,C25,"") -> 
A39: =IF(AND(A17=" davon Nachtarbeit",C17>0),"Zuschlag Nachtarbeit",IF(AND(A17=" davon Samstagsarbeit",C17>0),"Zuschlag Samstagsarbeit",IF(AND(A17=" davon Sonntagsarbeit",C17>0),"Zuschlag Sonntagsarbeit",""))) ->  | B39: =IF(A39="Zuschlag Nachtarbeit",0.25,IF(A39="Zuschlag Samstagsarbeit",0,IF(A39="Zuschlag Sonntagsarbeit",0.5,""))) ->  | D39: =IF(C17>0,"%","") ->  | F39: =IF(C17>0,"Entsendeentschädigung","") ->  | G39: =IF(C17>0,H39*C41,"") ->  | H39: =IF(AND(C17>0,D24="Euro für die Einsatzdauer"),(($C$24)-(((C15*C42)+(C14*C43))/C41))/C16,IF(AND(C17>0,D24="Euro pro Tag"),((C24*C14)-((C42*C15+C43*C14)/C41))/C16,"")) -> 
A40: Wechselkurs | F40: =IF(C17>0,"Bruttostundenlohn","") ->  | G40: =IF(C17>0,SUM(G29:G39),"") ->  | H40: =IF(C17>0,SUM(H29:H39),"") ->  | I40: =IF(C17>0,SUM(I29:I35),"") ->  | J40: =IF(C17>0,SUM(J29:J35),"") -> 
B41: April 2022 | C41: 1.0353 | D41: CHF/Euro
A42: Übernachtungspauschale | C42: 0 | D42: CHF | G42: =IF(C17>0,"CHF","") ->  | H42: =IF(C17>0,"Euro","") -> 
A43: Verpflegungspauschale | C43: 0 | D43: CHF | F43: =IF(AND(C17>0,A17=" davon Nachtarbeit"),"Differenz Bruttostundenlohn bei Nachtarbeit",IF(AND(C17>0,A17=" davon Samstagsarbeit"),"Differenz Bruttostundenlohn bei Samstagsarbeit",IF(AND(C17>0,A17=" davon Sonntagsarbeit"),"Differenz Bruttostundenlohn bei Sonntagsarbeit",""))) ->  | G43: =IF(C17>0,G40-J40,"") ->  | H43: =IF(C17>0,H40-I40,"") -> 
G45: CHF | H45: Euro
F46: Differenz Total | G46: =IF(C17>0,G25*(C16-C17)+G43*C17,G25*C16) -> 0 | H46: =IF(C17>0,H25*(C16-C17)+H43*C17,H25*C16) -> 0
A47: Berechnungen:
A48: Allgemeine Bemerkungen: | B48: Verstösse sollen nur dann signalisiert werden falls eine Lohndifferenz beim endgültigen Total erscheint und nicht bei einer einzelnen Position.
A49: Grundlohn: | B49: Der Grundlohn pro Stunde kann direk in die Tabelle übernommen werden.
B50: Ist nur der monatliche Bruttolohn ausgewiesen, so ist dieser durch die vertraglich vereinbarte Anzahl Monatsstunden zu dividieren. Ist lediglich die Anzahl Jahresstunden bekannt, so kann der monatliche Bruttolohn mit Hilfe folgender Berechnung ermittelt werden: Im Durchschnitt von 4 Jahren besteht ein Jahr aus 52 Wochen: 52 × Anzahl Wochenstunden = Jahresstunden Anzahl Jahresstunden / 12 = Anzahl Stunden pro Monat monatlicher Bruttolohn / Anzahl Stunden pro Monat = Stundenlohn
A51: Entsendzulage: | B51: Falls die Entsendezulage pro Stunde ausgewiesen wird, kann diese ebenfalls direkt in die Tabelle übernommen werden.
A52: Entsendeentschädigung: | B52: Primär sind bei der Abgrenzung die tatsächlichen Aufwendungen für die Reise, Übernachtung und Verpflegung massgebend. Werden die Kosten direkt vom Arbeitgeber übernommen (z.B. Bezahlung der Hotelrechnung), so müssen beim Lohnvergleich die Kosten und die Aufwendungen des Arbeitgebenden nicht berücksichtigt werden (die Felder C25, C43 und C44 müssen leer gelassen werden). Es werden nur diejenigen Beträge berücksichtigt, welche die tatsächlichen Auslagen übersteigen. Vom Pauschalbetrag werden die Kosten für Übernachtung (150 CHF pro Tag) und Verpflegung (40 CHF pro Tag) abgezogen. Bsp: 8 Übernachtungen und 8 Arbeitstage Entsendeentschädigung: 1'200 Euro = 1570.20 CHF tatsächliche Aufwendungen: 8*150 CHF+ 8*40 CHF = 1520 CHF überschüssiger Betrag: 50.20 CHF überschüssiger Betrag pro Arbeitsstunde: 50.20CHF / 64 = 0.78 CHF → 0.78 CHF werden zum Grundlohn addiert.
B53: Sollten die tatsächlichen Ausgaben die Entsendeentschädigung übersteigen, so wird der fehlende Betrag vom Grundlohn (auf der Ist-Seite) abgezogen (anteilsmässig, je Stunde).
A54: Vermögenswirksame Leistungen: | B54: Die Umrechnung des monatlichen Beitrags auf einen Beitrag pro Stunde erfolgt analog zur Umrechnung des monatlichen Bruttolohnes auf einen Stundenlohn.
A55: Ferienentschädigung: | B55: Die Ferien- und Feiertagsentschädigung ist auf Basis der Summe aus Grundlohn und vermögenswirksamer Leistungen zu berechnen.
B56: Die Prozentzahl, die zu addieren ist, ergibt sich aus folgender Berechnung:
B57: Der Betrag, der in die Tabelle eingesetzt wird ist dann:
A58: Feiertagsentschädigung: | B58: Die Berechnung erfolgt analog zur Berechnung der Ferienentschädigung.
A59: 13./14. Monatslohn: | B59: Ein zusätzlicher Monatslohn ist auf Basis der Summe von Grundlohn, vermögenswirksamen Leistungen und Ferien-/Feiertagsentschädigung zu berechnen. Entspricht der zusätzliche Monatslohn einem vollen Monatsgehalt (100%), so ist ein Betrag von 1/12 mal der Summe von Grundlohn, vermögenswirksamen Leistungen und Ferien-/Feiertagsentschädigung zu addieren. Sollte nur ein Bruchteil eines Monatslohnes ausbezahlt werden, ist nur dieser zu berücksichtigen.
A60: Urlaubsgeld/Weihnachtsgeld: | B60: Analog zur Berechnung des 13./14. Monatslohnes
A61: Wechselkurs: | B61: Falls die Lohnabrechnung in Euro ausgewiesen ist, müssen der Grundlohn sowie die Zuschläge durch den monatlichen Wechselkurs CHF/Euro geteilt werden, um einen mit den Schweizerlöhnen vergleichbaren Bruttostundenlohn zu erhalten.

Sheet Berechnungshilfe (Beispiel)
A2: Berechnungshilfe zur Weisung "Vorgehen zum Internationaler Lohnvergleich"
A3: Entsendefirma | B3: Entsendefirma | F3: Einsatzort | G3: Mustereinsatzort
A4: Name, Vorname des Mitarbeiters | B4: Name, Vorname | F4: Branche | G4: 28 Maschinenbau
A5: Geburtsdatum | B5: 2001-01-01 | D5: =DATEDIF(B5,B7,"Y") -> 20 | E5: Jahre | F5: Ausbildung | G5: Ohne abgeschlossene Berufsausbildung
A6: Im Betrieb seit | B6: 2020-01-01 | D6: =DATEDIF(B6,B7,"y") -> 1 | E6: Jahre | F6: Stellung im Betrieb | G6: Ohne Kaderfunktion
A7: Kontrolldatum / Einsatz | B7: 2021-11-24 | C7: 2021-11-22 | D7: bis 03.12.2021 | F7: Berufsgruppe | G7: 82 Montageberufe
A9: Herkunftsland (Angaben in Euro) / IST-Seite | F9: Vergleich Stundenlohn:
A10: Die Angaben in den gelben Feldern sind Beispiele | G10: Ist Herkunftsland | I10: Soll Schweiz | L10: % eines Monatsgehaltes
G11: CHF | H11: Euro | I11: Euro | J11: CHF | L11: Euro pro Jahr
F12: Grundlohn | G12: =$H12*$C$41 -> 16.164 | H12: =IF(D13="Euro pro Std.",C13,C13/((C21*52)/12)) -> 15 | I12: =$J12/$C$41 -> 22.50371195 | J12: =C34 -> 24.25 | L12: % (prozentualer Zuschlag auf den Stundenlohn)
A13: Grundlohn | C13: 15 | D13: Euro pro Std. | F13: Vermögenswirksame Leistungen | G13: =$H13*$C$41 -> 0.1653079846 | H13: =C20/((52*C21)/12) -> 0.1534038462 | L13: davon Nachtarbeit
A14: Einsatzdauer in Tagen | C14: 8 | D14: Tage | F14: Ferienentschädigung | G14: 2.129909737 | H14: =(H12+H13)*(C22/(260-C22)) -> 1.976530936 | I14: =$J14/$C$41 -> 1.875309329 | J14: =J12*(C35/(260-C35)) -> 2.020833333 | L14: davon Samstagsarbeit
A15: Anzahl Übernachtungen | C15: 8 | D15: Übernachtungen | F15: Feiertagsentschädigung | G15: 0.6531723194 | H15: =(H12+H13)*(C23/(260-C23)) -> 0.6061361538 | I15: =$J15/$C$41 -> 0.8069060063 | J15: =J12*(C36/(260-C36)) -> 0.8695219124 | L15: davon Sonntagsarbeit
A16: Einsatzdauer in Stunden | C16: 64 | D16: Stunden | F16: 13. Monatslohn | G16: 1.274159336 | H16: =IF(D26="Euro pro Jahr",(H12+H13+H14+H15)*L27/100*1/12,IF(D26="% eines Monatsgehaltes",(H12+H13+H14+H15)*C26/100*1/12,(H12+H13+H14+H15)*C26/100)) -> 1.182404729 | I16: =$J16/$C$41 -> 2.098827274 | J16: =(J12+J14+J15)*(C37/100)*(1/12) -> 2.26169627 | L16: Euro pro Std.
A17: davon Nachtarbeit | C17: 6 | D17: Stunden | F17: 14. Monatslohn | G17: 0 | H17: =IF(D27="Euro pro Jahr",(H12+H13+H14+H15)*L28/100*1/12,IF(D27="% eines Monatsgehaltes",(H12+H13+H14+H15)*C27/100*1/12,(H12+H13+H14+H15)*C27/100)) -> 0 | I17: =$J17/$C$41 -> 0 | J17: =(J12+J14+J15)*(C38/100)*(1/12) -> 0 | L17: Euro pro Monat
A18: =IF(AND(A17=" davon Nachtarbeit",C17>0)," Zuschlag Nachtarbeit",IF(AND(A17=" davon Samstagsarbeit",C17>0)," Zuschlag Samstagsarbeit",IF(AND(A17=" davon Sonntagsarbeit",C17>0)," Zuschlag Sonntagsarbeit",""))) -> Zuschlag Nachtarbeit | C18: 5.6 | D18: =IF(C17>0,"Euro pro Stunde","") -> Euro pro Stunde | F18: Urlaubsgeld | G18: 0 | H18: =IF(D28="Euro pro Jahr",(H12+H13+H14+H15)*(L29/100)*1/12,IF(D28="% eines Monatsgehaltes",(H12+H13+H14+H15)*(C28/100)*1/12,(H12+H13+H14+H15)*C28/100)) -> 0
A19: davon Reisezeit in der Schweiz | C19: 3 | D19: Stunden | F19: Weihnachtsgeld | G19: 1.59269917 | H19: =IF(D29="Euro pro Jahr",(H12+H13+H14+H15)*(L30/100)*1/12,IF(D29="% eines Monatsgehaltes",(H12+H13+H14+H15)*(C29/100)*1/12,(H12+H13+H14+H15)*C29/100)) -> 1.478005911
A20: Vermögenswirksame Leistungen | C20: 26.59 | D20: Euro pro Monat | F20: Entsendezulage | G20: 7.59708 | H20: =C25 -> 7.05
A21: Arbeitsstunden pro Woche im Herkunftsland | C21: 40 | D21: Stunden pro Woche | F21: Entsendeentschädigung | G21: -0.1775 | H21: =IF(D24="Euro für die Einsatzdauer",(($C24)-((C15*C42)+(C14*C43))/C41)/C16,((C24*C14)-((C42*C15+C43*C14)/C41))/C16) -> -0.1647178916
A22: Ferien | C22: 30 | D22: Tage | F22: Bruttostundenlohn | G22: =SUM(G$12:G$21) -> 29.39882855 | H22: =SUM(H$12:H$21) -> 27.28176369 | I22: =SUM(I$12:I$17)-I13 -> 27.28475456 | J22: =SUM(J$12:J$17)-J13 -> 29.40205152
A23: Feiertage | C23: 10 | D23: Tage
A24: Entsendeentschädigung | C24: 1400 | D24: Euro für die Einsatzdauer | G24: CHF | H24: Euro
A25: Entsendezulage | C25: 7.05 | D25: Euro pro Std. | F25: Differenz Bruttostundenlohn | G25: =G22-J22 -> -0.003222968865 | H25: =H22-I22 -> -0.002990876824 | L25: Euro für die Einsatzdauer
A26: 13. Monatslohn | C26: 80 | D26: % eines Monatsgehaltes | L26: Euro pro Tag
A27: 14. Monatslohn | C27: 0 | D27: % eines Monatsgehaltes | F27: =IF(AND(C17>0,A17=" davon Nachtarbeit"),"Vergleich Stundenlohn für Einsätze in der Nacht:",IF(AND(C17>0,A17=" davon Samstagsarbeit"),"Vergleich Stundenlohn für Einsätze an Samstagen:",IF(AND(C17>0,A17=" davon Sonntagsarbeit"),"Vergleich Stundenlohn für Einsätze an Sonntagen:",""))) -> Vergleich Stundenlohn für Einsätze in der Nacht: | L27: =C26/C30*100 -> 3.076923077
A28: Urlaubsgeld | C28: 0 | D28: % eines Monatsgehaltes | G28: =IF(C17>0,"Ist Herkunftsland","") -> Ist Herkunftsland | I28: =IF(C17>0,"Soll Schweiz","") -> Soll Schweiz | L28: =C27/C30*100 -> 0
A29: Weihnachtsgeld | C29: 2600 | D29: Euro pro Jahr | F29: =IF(C17>0,"Grundlohn","") -> Grundlohn | G29: =IF(C17>0,$H29*$C$41,"") -> 16.164 | H29: =IF(AND(C17>0,D13="Euro pro Std."),C13,IF(AND(C17>0,D13="Euro pro Monat"),C13/((C21*52)/12),"")) -> 15 | I29: =IF(C17>0,$J29/$C$41,"") -> 22.50371195 | J29: =IF(C17>0,C34,"") -> 24.25 | L29: =C28/C30*100 -> 0
A30: =IF(OR(D26="Euro pro Jahr",D27="Euro pro Jahr",D28="Euro pro Jahr",D29="Euro pro Jahr"),"Monatslohn","") -> Monatslohn | C30: 2600 | D30: =IF(A30="Monatslohn","Euro pro Monat","") -> Euro pro Monat | F30: =IF(A18=" Zuschlag Nachtarbeit","Zulage Nachtarbeit",IF(A18=" Zuschlag Samstagsarbeit","Zulage Samstagsarbeit", IF(A18=" Zuschlag Sonntagsarbeit","Zulage Sonntagsarbeit",""))) -> Zulage Nachtarbeit | G30: =IF(C17>0,H30*C41,"") -> 6.03456 | H30: =IF(C17>0,C18,"") -> 5.6 | I30: =IF(C17>0,$J$30/$C$41,"") -> 5.625927988 | J30: =IF(AND(C17>0,C39=""),J29*B39,IF(C17>0,J29*C39/100,"")) -> 6.0625 | L30: =C29/C30*100 -> 100
F31: =IF(C17>0,"Vermögenswirksame Leistungen","") -> Vermögenswirksame Leistungen | G31: =IF(C17>0,H31*C$41,"") -> 0.1653079846 | H31: =IF(C17>0,C20/((52*C21)/12),"") -> 0.1534038462
A32: Schweiz (Angaben In CHF) / SOLL-Seite | F32: =IF(C17>0,"Ferienentschädigung","") -> Ferienentschädigung | G32: =IF(C17>0,$H32*$C$41,"") -> 2.129909737 | H32: =IF(C17>0,(H29+H31)*(C22/(260-C22)),"") -> 1.976530936 | I32: =IF(C17>0,$J32/$C$41,"") -> 1.875309329 | J32: =IF(C17>0,(J29)*(C35/(260-C35)),"") -> 2.020833333
F33: =IF(C17>0,"Feiertagsentschädigung","") -> Feiertagsentschädigung | G33: =IF(C17>0,$H33*$C$41,"") -> 0.6531723194 | H33: =IF(C17>0,(H29+H31)*(C23/(260-C23)),"") -> 0.6061361538 | I33: =IF(C17>0,$J33/$C$41,"") -> 0.8069060063 | J33: =IF(C17>0,(J29)*(C36/(260-C36)),"") -> 0.8695219124
A34: Grundlohn (pro Stunde) | C34: 24.25 | D34: CHF | F34: =IF(C17>0,"13. Monatslohn","") -> 13. Monatslohn | G34: =IF(C17>0,$H34*$C$41,"") -> 1.274159336 | H34: =IF(C17>0,IF(D26="Euro pro Jahr",(H12+H13+H14+H15)*L27/100*1/12,IF(D26="% eines Monatsgehaltes",(H12+H13+H14+H15)*C26/100*1/12,(H12+H13+H14+H15)*C26/100)),"") -> 1.182404729 | I34: =IF(C17>0,$J34/$C$41,"") -> 2.098827274 | J34: =IF(C17>0,(SUM(J29:J33)-J30)*(C37/100)*(1/12),"") -> 2.26169627
A35: Ferien | C35: 20 | D35: Tage | F35: =IF(C17>0,"14. Monatslohn","") -> 14. Monatslohn | G35: =IF(C17>0,$H35*$C$41,"") -> 0 | H35: =IF(C17>0,IF(D27="Euro pro Jahr",(H12+H13+H14+H15)*L28/100*1/12,IF(D27="% eines Monatsgehaltes",(H12+H13+H14+H15)*C27/100*1/12,(H12+H13+H14+H15)*C27/100)),"") -> 0 | I35: =IF(C17>0,$J35/$C$41,"") -> 0 | J35: =IF(C17>0,(SUM(J29:J33)-J30)*(C38/100)*(1/12),"") -> 0
A36: Feiertage | C36: 9 | D36: Tage | F36: =IF(C17>0,"Urlaubsgeld","") -> Urlaubsgeld | G36: =IF(C17>0,$H36*$C$41,"") -> 0 | H36: =IF(C17>0,IF(D28="Euro pro Jahr",(H12+H13+H14+H15)*L29/100*1/12,IF(D28="% eines Monatsgehaltes",(H12+H13+H14+H15)*C28/100*1/12,(H12+H13+H14+H15)*C28/100)),"") -> 0
A37: 13. Monatslohn | C37: 100 | D37: % | F37: =IF(C17>0,"Weihnachtsgeld","") -> Weihnachtsgeld | G37: =IF(C17>0,$H37*$C$41,"") -> 1.59269917 | H37: =IF(C17>0,IF(D29="Euro pro Jahr",(H12+H13+H14+H15)*L30/100*1/12,IF(D29="% eines Monatsgehaltes",(H12+H13+H14+H15)*C29/100*1/12,(H12+H13+H14+H15)*C29/100)),"") -> 1.478005911
A38: 14. Monatslohn | C38: 0 | D38: % | F38: =IF(C17>0,"Entsendezulage","") -> Entsendezulage | G38: =IF(C17>0,$H38*$C$41,"") -> 7.59708 | H38: =IF(C17>0,C25,"") -> 7.05
A39: =IF(AND(A17=" davon Nachtarbeit",C17>0),"Zuschlag Nachtarbeit",IF(AND(A17=" davon Samstagsarbeit",C17>0),"Zuschlag Samstagsarbeit",IF(AND(A17=" davon Sonntagsarbeit",C17>0),"Zuschlag Sonntagsarbeit",""))) -> Zuschlag Nachtarbeit | B39: =IF(A39="Zuschlag Nachtarbeit",0.25,IF(A39="Zuschlag Samstagsarbeit",0,IF(A39="Zuschlag Sonntagsarbeit",0.5,""))) -> 0.25 | D39: =IF(C17>0,"%","") -> % | F39: =IF(C17>0,"Entsendeentschädigung","") -> Entsendeentschädigung | G39: =IF(C17>0,H39*C41,"") -> -0.1775 | H39: =IF(AND(C17>0,D24="Euro für die Einsatzdauer"),(($C$24)-(((C15*C42)+(C14*C43))/C41))/C16,IF(AND(C17>0,D24="Euro pro Tag"),((C24*C14)-((C42*C15+C43*C14)/C41))/C16,"")) -> -0.1647178916
F40: =IF(C17>0,"Bruttostundenlohn","") -> Bruttostundenlohn | G40: =IF(C17>0,SUM(G29:G39),"") -> 35.43338855 | H40: =IF(C17>0,SUM(H29:H39),"") -> 32.88176369 | I40: =IF(C17>0,SUM(I29:I35),"") -> 32.91068255 | J40: =IF(C17>0,SUM(J29:J35),"") -> 35.46455152
A41: Wechselkurs | B41: März 2020 | C41: 1.0776 | D41: CHF/Euro
A42: Übernachtungspauschale | C42: 150 | D42: CHF | G42: =IF(C17>0,"CHF","") -> CHF | H42: =IF(C17>0,"Euro","") -> Euro
A43: Verpflegungspauschale | C43: 40 | D43: CHF | F43: =IF(AND(C17>0,A17=" davon Nachtarbeit"),"Differenz Bruttostundenlohn bei Nachtarbeit",IF(AND(C17>0,A17=" davon Samstagsarbeit"),"Differenz Bruttostundenlohn bei Samstagsarbeit",IF(AND(C17>0,A17=" davon Sonntagsarbeit"),"Differenz Bruttostundenlohn bei Sonntagsarbeit",""))) -> Differenz Bruttostundenlohn bei Nachtarbeit | G43: =IF(C17>0,G40-J40,"") -> -0.03116296887 | H43: =IF(C17>0,H40-I40,"") -> -0.02891886495
G45: CHF | H45: Euro
F46: Differenz Total | G46: =IF(C17>0,G25*(C16-C17)+G43*C17,G25*C16) -> -0.3739100074 | H46: =IF(C17>0,H25*(C16-C17)+H43*C17,H25*C16) -> -0.3469840455
A47: Berechnungen:
A48: Allgemeine Bemerkungen: | B48: Verstösse sollen nur dann signalisiert werden falls eine Lohndifferenz beim endgültigen Total erscheint und nicht bei einer einzelnen Position.
A49: Grundlohn: | B49: Der Grundlohn pro Stunde kann direk in die Tabelle übernommen werden.
B50: Ist nur der monatliche Bruttolohn ausgewiesen, so ist dieser durch die vertraglich vereinbarte Anzahl Monatsstunden zu dividieren. Ist lediglich die Anzahl Jahresstunden bekannt, so kann der monatliche Bruttolohn mit Hilfe folgender Berechnung ermittelt werden: Im Durchschnitt von 4 Jahren besteht ein Jahr aus 52 Wochen: 52 × Anzahl Wochenstunden = Jahresstunden Anzahl Jahresstunden / 12 = Anzahl Stunden pro Monat monatlicher Bruttolohn / Anzahl Stunden pro Monat = Stundenlohn
A51: Entsendzulage: | B51: Falls die Entsendezulage pro Stunde ausgewiesen wird, kann diese ebenfalls direkt in die Tabelle übernommen werden.
A52: Entsendeentschädigung: | B52: Primär sind bei der Abgrenzung die tatsächlichen Aufwendungen für die Reise, Übernachtung und Verpflegung massgebend. Werden die Kosten direkt vom Arbeitgeber übernommen (z.B. Bezahlung der Hotelrechnung), so müssen beim Lohnvergleich die Kosten und die Aufwendungen des Arbeitgebenden nicht berücksichtigt werden (die Felder C25, C43 und C44 müssen leer gelassen werden). Es werden nur diejenigen Beträge berücksichtigt, welche die tatsächlichen Auslagen übersteigen. Vom Pauschalbetrag werden die Kosten für Übernachtung (150 CHF pro Tag) und Verpflegung (40 CHF pro Tag) abgezogen. Bsp: 8 Übernachtungen und 8 Arbeitstage Entsendeentschädigung: 1'200 Euro = 1570.20 CHF tatsächliche Aufwendungen: 8*150 CHF+ 8*40 CHF = 1520 CHF überschüssiger Betrag: 50.20 CHF überschüssiger Betrag pro Arbeitsstunde: 50.20CHF / 64 = 0.78 CHF → 0.78 CHF werden zum Grundlohn addiert.
B53: Sollten die tatsächlichen Ausgaben die Entsendeentschädigung übersteigen, so wird der fehlende Betrag vom Grundlohn (auf der Ist-Seite) abgezogen (anteilsmässig, je Stunde).
A54: Vermögenswirksame Leistungen: | B54: Die Umrechnung des monatlichen Beitrags auf einen Beitrag pro Stunde erfolgt analog zur Umrechnung des monatlichen Bruttolohnes auf einen Stundenlohn.
A55: Ferienentschädigung: | B55: Die Ferien- und Feiertagsentschädigung ist auf Basis der Summe aus Grundlohn und vermögenswirksamer Leistungen zu berechnen.
B56: Die Prozentzahl, die zu addieren ist, ergibt sich aus folgender Berechnung:
B57: Der Betrag, der in die Tabelle eingesetzt wird ist dann:
A58: Feiertagsentschädigung: | B58: Die Berechnung erfolgt analog zur Berechnung der Ferienentschädigung.
A59: 13./14. Monatslohn: | B59: Ein zusätzlicher Monatslohn ist auf Basis der Summe von Grundlohn, vermögenswirksamen Leistungen und Ferien-/Feiertagsentschädigung zu berechnen. Entspricht der zusätzliche Monatslohn einem vollen Monatsgehalt (100%), so ist ein Betrag von 1/12 mal der Summe von Grundlohn, vermögenswirksamen Leistungen und Ferien-/Feiertagsentschädigung zu addieren. Sollte nur ein Bruchteil eines Monatslohnes ausbezahlt werden, ist nur dieser zu berücksichtigen.
A60: Urlaubsgeld/Weihnachtsgeld: | B60: Analog zur Berechnung des 13./14. Monatslohnes
A61: Wechselkurs: | B61: Falls die Lohnabrechnung in Euro ausgewiesen ist, müssen der Grundlohn sowie die Zuschläge durch den monatlichen Wechselkurs CHF/Euro geteilt werden, um einen mit den Schweizerlöhnen vergleichbaren Bruttostundenlohn zu erhalten.

Sheet BH Scheinselbständigkeit
A2: Berechnungshilfe zur Weisung "Vorgehen zum Internationaler Lohnvergleich"
L4: % eines Monatsgehaltes
L5: Euro pro Jahr
A6: Herkunftsland (Angaben in Euro) | F6: Soll Stundenlohn: | L6: % (prozentualer Zuschlag auf den Stundenlohn)
A7: Die Angaben in den gelben Feldern sind Beispiele | G7: Soll Schweiz | L7: davon Nachtarbeit
G8: Euro | H8: CHF | L8: davon Samstagsarbeit
F9: Grundlohn | G9: =$H9/$C$32 -> 27.57352941 | H9: =C25 -> 30 | L9: davon Sonntagsarbeit
A10: Werklohn | C10: 2650 | D10: Pauschale in Euro | F10: =IF(A15=" Zuschlag Nachtarbeit","Zuschlag Nachtarbeit",IF(A15=" Zuschlag Samstagsarbeit","Zuschlag Samstagsarbeit", IF(A15=" Zuschlag Sonntagsarbeit","Zuschlag Sonntagsarbeit",""))) -> Zuschlag Sonntagsarbeit | G10: =IF(C14>0,H10/$C$32,"") -> 13.78676471 | H10: =IF(AND(C14>0,C30=""),H9*B30,IF(C14>0,H9*C30/100,"")) -> 15 | L10: Euro pro Std.
A11: Einsatzdauer in Tagen | C11: 8 | D11: Tage | F11: Ferienentschädigung | G11: =$H11/$C$32 -> 2.297794118 | H11: =SUM(H$9)*(C26/(260-C26)) -> 2.5 | L11: Pauschale in Euro
A12: Anzahl Übernachtungen | C12: 8 | D12: Übernachtungen | F12: Feiertagsentschädigung | G12: =$H12/$C$32 -> 0.9886922897 | H12: =SUM(H$9)*(C27/(260-C27)) -> 1.075697211
A13: Einsatzdauer in Stunden | C13: 64 | D13: Stunden | F13: 13. Monatslohn | G13: =$H13/$C$32 -> 2.571667985 | H13: =(H9+H11+H12)*(C28/100)*(1/12) -> 2.797974768
A14: davon Sonntagsarbeit | C14: 4 | D14: Stunden | F14: 14. Monatslohn | G14: =$H14/$C$32 -> 0 | H14: =(H9+H11+H12)*(C29/100)*(1/12) -> 0
A15: =IF(AND(A14=" davon Nachtarbeit",C14>0)," Zuschlag Nachtarbeit",IF(AND(A14=" davon Samstagsarbeit",C14>0)," Zuschlag Samstagsarbeit",IF(AND(A14=" davon Sonntagsarbeit",C14>0)," Zuschlag Sonntagsarbeit",""))) -> Zuschlag Sonntagsarbeit | D15: =IF(C14>0,"Euro pro Stunde","") -> Euro pro Stunde | F15: Bruttostundenlohn | G15: =SUM(G$9:G$14) -> 47.21844851 | H15: =SUM(H$9:H$14) -> 51.37367198
A16: bezahlte Ferien | C16: 0 | D16: Tage
A17: bezahlte Feiertage | C17: 0 | D17: Tage | F17: Vergleich Werklohn/Soll Total:
A18: Entsendeentschädigung | C18: 1500 | D18: Euro für die Einsatzdauer
F19: Soll | G19: pro Stunde | I19: Anzahl Stunden | J19: Total
A20: Kosten für Material, Arbeitsgeräte und Ähnliches | C20: 500 | D20: Euro | G20: Euro | H20: CHF | J20: Euro | K20: CHF | L20: Euro für die Einsatzdauer
F21: =IF(AND(C14>0,A14=" davon Nachtarbeit"),"Soll für Einsätze in der Nacht:",IF(AND(C14>0,A14=" davon Samstagsarbeit"),"Soll für Einsätze an Samstagen:",IF(AND(C14>0,A14=" davon Sonntagsarbeit"),"Soll für Einsätze an Sonntagen:",""))) -> Soll für Einsätze an Sonntagen: | G21: =IF(C14>0,G15,"") -> 47.21844851 | H21: =IF(C14>0,H15,"") -> 51.37367198 | I21: =IF(C14>0,C14,"") -> 4 | J21: =IF(C14>0,G21*I21,"") -> 188.873794 | K21: =IF(C14>0,H21*I21,"") -> 205.4946879 | L21: Euro pro Tag
F22: Soll für Einsätze während Normalarbeitszeit: | G22: =IF(C14>0,G15-G10,G15) -> 33.4316838 | H22: =IF(C14>0,H15-H10,H15) -> 36.37367198 | I22: =C13-C14 -> 60 | J22: =G22*I22 -> 2005.901028 | K22: =H22*I22 -> 2182.420319
A23: Schweiz (Angaben In CHF) | F23: Total | I23: =SUM(I21:I22) -> 64 | J23: =SUM(J21:J22) -> 2194.774822 | K23: =SUM(K21:K22) -> 2387.915007
A25: Grundlohn (pro Stunde) | C25: 30 | D25: CHF | F25: Ist
A26: Ferien | C26: 20 | D26: Tage | F26: Werklohn | J26: =IF(D10="Pauschale in Euro",C10,C10*C13) -> 2650 | K26: =J26*C32 -> 2883.2
A27: Feiertage | C27: 9 | D27: Tage | F27: Entsendeentschädigung | J27: =IF(D18="Euro für die Einsatzdauer",C18,C18*C11) -> 1500 | K27: =J27*C32 -> 1632
A28: 13. Monatslohn | C28: 100 | D28: % | F28: =IF(A15=" Zuschlag Nachtarbeit","Zuschlag Nachtarbeit",IF(A15=" Zuschlag Samstagsarbeit","Zuschlag Samstagsarbeit", IF(A15=" Zuschlag Sonntagsarbeit","Zuschlag Sonntagsarbeit",""))) -> Zuschlag Sonntagsarbeit | J28: =IF(C14>0,C15*C14,"") -> 0 | K28: =IF(C14>0,J28*C32,"") -> 0
A29: 14. Monatslohn | C29: 0 | D29: % | F29: Kosten für Material, Arbeitsgeräte und Ähnliches | J29: =C20*(-1) -> -500 | K29: =J29*C32 -> -544
A30: =IF(AND(A14=" davon Nachtarbeit",C14>0),"Zuschlag Nachtarbeit",IF(AND(A14=" davon Samstagsarbeit",C14>0),"Zuschlag Samstagsarbeit",IF(AND(A14=" davon Sonntagsarbeit",C14>0),"Zuschlag Sonntagsarbeit",""))) -> Zuschlag Sonntagsarbeit | B30: =IF(A30="Zuschlag Nachtarbeit",0.25,IF(A30="Zuschlag Samstagsarbeit",0,IF(A30="Zuschlag Sonntagsarbeit",0.5,""))) -> 0.5 | D30: =IF(C14>0,"%","") -> % | F30: Kosten für Übernachtung | J30: =K30/C32 -> -1102.941176 | K30: =C33*C12*(-1) -> -1200
F31: Kosten für Verpflegung | J31: =K31/C32 -> -294.1176471 | K31: =C34*C11*(-1) -> -320
A32: Wechselkurs | B32: März 2020 | C32: 1.088 | D32: CHF/Euro | F32: Kosten für Anreise | J32: =K32/C32 -> -55.14705882 | K32: =C35*(-1) -> -60
A33: Kosten für Übernachtung | C33: 150 | D33: CHF | F33: Total | J33: =SUM(J26:J32) -> 2197.794118 | K33: =SUM(K26:K32) -> 2391.2
A34: Kosten für Verpflegung | C34: 40 | D34: CHF
A35: Kosten für Anreise | C35: 60 | D35: CHF
J36: Euro | K36: CHF
F37: Differenz Total | J37: =J33-J23 -> 3.019295368 | K37: =K33-K23 -> 3.28499336
A42: Berechnungen:
A43: Beim Lohnvergleich bei festgestellter Scheinselbständigkeit wird im Gegensatz zum Lohnvergleich bei entsandten Arbeitnehmenden auf die gesamte Auftragssumme abgestellt (es wird kein direkter Lohnvergleich auf Basis des Stundenlohns durchgeführt), weil der Werklohn bei der Auftragsvergabe an einen selbständig Erwerbenden oft als Pauschale vereinbart wird. Als Basis auf der Sollseite dienen die Mindeststundelöhne, die in der Schweiz verbindlich sind.
A45: Werklohn: | B45: Je nachdem, wie der Werklohn ausbezahlt wird, kann er als Stundenlohn oder als Pauschalbetrag angegeben werden. Auf der Sollseite wird der in der Schweiz geltende Mindestlohn (inkl. Entschädigungen für Ferien- und Feiertage sowie 13. Monatslohn) multipliziert mit der Einsatzdauer verwendet.
A46: Entsendeentschädigung: | B46: Primär sind bei der Abgrenzung die tatsächlichen Aufwendungen für die Reise, Übernachtung und Verpflegung massgebend. Werden die Kosten direkt vom Arbeitgeber übernommen (z.B. Bezahlung der Hotelrechnung), so müssen beim Lohnvergleich die Kosten und die Aufwendungen des Arbeitgebers nicht berücksichtigt werden (die Felder C20, C33, C34 und C35 können leer gelassen werden). Es werden nur diejenigen Beträge berücksichtigt, welche die tatsächlichen Auslagen übersteigen. Vom Pauschalbetrag werden die Kosten für Übernachtung (150 CHF pro Tag), Verpflegung (40 CHF pro Tag) sowie für die Anreise (60 CHF; entspricht einem Anfahrtsweg von 100 km mit dem eigenen Fahrzeug) abgezogen. Bsp: 8 Übernachtungen und 8 Arbeitstage Entsendeentschädigung: 1'300 Euro = 1'588.99 CHF tatsächliche Aufwendungen: 8×150 CHF+ 8×40 CHF +0.6×100 = 1'580 CHF überschüssiger Betrag: 8.99 CHF → 8.99 CHF werden zum Werklohn addiert.
A47: Kosten für Anreise: | B47: Hat der Arbeitnehmende für die Anreise sein eigenes Fahrzeug benutzt, so ist der im anwendbaren ave GAV festgelegte Kostenansatz anzuwenden. Wenn im Einzelfall keine Regelung besteht, ist für den Gebrauch des eigenen Fahrzeugs eine Entschädigung von CHF 0.60 pro Kilometer anzuwenden. Für die Ermittlung der Reisekosten ist der gesamte zurückgelegte Hin- und Rückweg zu berücksichtigen, das heisst der Weg vom Abfahrtsort im Herkunftsland bis zum Einsatzort in der Schweiz und zurück.
B48: Sollten die tatsächlichen Ausgaben die Entsendeentschädigung übersteigen, so wird der fehlende Betrag vom Werklohn (auf der Ist-Seite) abgezogen.
A49: Kosten für Material, Arbeitsgeräte und Ähnliches: | B49: Falls der Arbeitnehmende nachweislich weitere Aufwendungen zu tätigen hatte, die in einem Arbeitsverhältnis der Arbeitgeber zu tragen hat, so werden diese Kosten vom Werklohn in Abzug gebracht.
A50: Ferien- und Feiertagsentschädigung: | B50: Die Berechnung der Ferien- und Feiertagsentschädigung auf der Soll-Seite wird analog zur Berechnung der Entschädigung bei entsandten Arbeitnehmenden durchgeführt.
A51: 13. /14. Monatslohn: | B51: Die Berechnung der Entschädigung für einen allfälligen 13. oder 14. Monatslohn auf der Soll-Seite wird ebenfalls analog zur Berechnung der Entschädigung bei entsandten Arbeitnehmenden durchgeführt.

Sheet Auszüge SECO Weisung
A2: Auszüge: Weisung "Vorgehen zum internationalen Lohnvergleich"
A4: 1.2 Beginn des Einsatzes
A5: Für den Lohnvergleich stellt sich auch die Abgrenzungsfrage, wann und wo der Einsatz beginnt. Im Allgemeinen gelten nationale private und öffentlich-rechtliche Vorschriften nur innerhalb des jeweiligen Staatsgebietes (Territorialitätsprinzip). Dieses Prinzip gilt auch im Anwendungsbereich des Entsendegesetzes und damit beim internationalen Lohnvergleich. Die für den Lohnvergleich massgebenden Bestimmungen in den Bundesgesetzen, allgemeinverbindlich erklärten Gesamtarbeitsverträgen und Normalarbeitsverträgen sind nur auf Sachverhalte in der Schweiz anwendbar. Konkret bedeutet dies, dass beim Lohnvergleich für den Beginn des Einsatzes frühestens auf den Zeitraum ab dem Schweizer Grenzort abzustellen ist.
A7: 3.1 Grundlohn
A8: Gemäss Artikel 1 Buchstabe a EntsV bezieht sich der Mindestlohn auf die übliche Arbeitszeit und die erworbenen Qualifikationen. Da national unterschiedliche Arbeitszeiten berücksichtigt werden müssen, ist der Lohnvergleich auf der Basis des Bruttostundenlohnes vorzunehmen. Der Bruttolohn ist der Lohnabrechnung oder dem Arbeitsvertrag zu entnehmen.
A9: Ist nur der monatliche Bruttolohn ausgewiesen, so ist dieser durch die vertraglich vereinbarte Anzahl Monatsstunden zu dividieren. Wenn diese nicht bekannt sind, ist auf die Anzahl Arbeitsstunden gemäss dem anwendbaren ave GAV oder auf die übliche Monatsarbeitszeit abzustützen. Das folgende Beispiel basiert auf 52 Wochen im Jahr, bzw. 21,75 Arbeitstagen pro Monat. Beispiel: 42-Stunden-Woche / Monatslohn CHF 4000.-
A18: Als massgebender Grundlohn auf der Soll-Seite gilt der im Zeitpunkt des Einsatzes geltende ave GAV-Mindestlohn bzw. der orts-, berufs- oder branchenübliche Lohn. Anhaltspunkte für die Einstufung in die richtige Lohnkategorie geben der Arbeitsvertrag, die abgeschlossene Berufsausbildung, das Alter sowie die ausgeübte Tätigkeit, welche im Kontrollrapport aufgeführt ist.
A20: 3.3 Entsendeentschädigungen
A21: Unter die Entsendeentschädigungen können einerseits die Zahlungen des Arbeitgebers fallen, welche der Deckung der tatsächlichen Aufwendungen (Auslagen) für den Einsatz in der Schweiz dienen, andererseits aber auch Zahlungen, welche den Lohnunterschied zwischen der Schweiz und dem Herkunftsland kompensieren und daher den Charakter von Entsendezulagen haben.
A22: Gemäss Art. 2 Abs. 3 EntsG müssen die Arbeitgeber den entsandten Arbeitnehmenden die Auslagen für die Entsendung vergüten. Diese Entschädigungen gelten nicht als Lohnbestandteil.
A28: 3.3.1 Auslagen
A30: Da die Entschädigung für Auslagen nicht zum Bruttolohn hinzugezählt werden darf, ist für den Lohnvergleich eine Abgrenzung zwischen den zwei erwähnten Vergütungsarten vorzunehmen. Primär sind bei der Abgrenzung die tatsächlichen Aufwendungen für Reise, Übernachtung und Verpflegung massgebend. Falls die tatsächlichen Aufwendungen nicht belegt werden können, ist auf Pauschalbeträge abzustellen. In Branchen mit allgemein verbindlich erklärten Gesamtarbeitsverträgen sind die vertraglich vereinbarten Pauschalen anwendbar. Sieht schliesslich ein allgemeinverbindlich erklärter Gesamtarbeitsvertrag keine Pauschalbeträge vor oder gibt es in einer Branche keinen allgemenverbindlich erklärten Gesamtarbeitsvertrag, ist auf die folgenden Ansätze abzustellen.
A32: Übernachtung inkl. Frühstück: CHF 150.- Übernachtung ohne Frühstück: CHF 135.- Frühstück CHF 15.- Mittagessen; Abendessen je CHF 20.-
A34: Diese sind nur als Richtgrössen zu verstehen, da die regionalen Kostenunterschiede bei den Auslagen berücksichtigt werden sollen. Diese Pauschalbeträge werden in CHF ausgewiesen, da nicht alle EU-Länder den € als Währung haben. Kann die Übernahme oder die Vergütung der Kosten für Reise, Übernachtung und Verpflegung vom Arbeitgeber nicht nachgewiesen werden, so werden diese Kosten gestützt auf Art. 2 Abs. 3 EntsG vom Grundlohn abgezogen. Kann die Übernahme oder die Vergütung nur für einen Teil der Kosten nachgewiesen werden, so wird der fehlende Betrag vom Grundlohn (anteilsmässig pro Stunde) abgezogen. Die Pflicht der Auslagenvergütung erfolgt unabhängig davon, ob die Kosten während des Einsatzes (für die Einsatzdauer ab Meldung) im In- oder Ausland anfallen.
A36: Die Differenz zwischen der Entsendeentschädigung und dem Total der Auslagen resp. der Pauschale ist als Entsendezulage (Abschnitt 3.3.2) zum Grundlohn (Ist-Seite) hinzuzuzählen, d.h. durch die in der Schweiz geleisteten Arbeitsstunden (inkl. Reisezeit ab Grenze) zu dividieren und zum Stundenlohn hinzuzufügen. In diesem Zusammenhang ist nicht massgebend, ob darauf Sozialversicherungsbeiträge erhoben werden oder nicht. In Präzisierung der Weisung vom 20. Februar 2007 ist für die Anrechnung von Entsendeentschädigungen als Lohnbestandteil also nicht primär entscheidend, ob sie sozialversicherungspflichtig sind oder nicht, sondern, ob sie die tatsächlichen Aufwendungen übersteigen.
A38: 3.3.2 Entsendezulagen
A39: Wie oben erwähnt, gelten Zulagen, die der Kompensation des Lohnunterschiedes zwischen der Schweiz und dem Herkunftsland dienen, als Lohnbestandteil. Entsendezulagen stellen sozialversicherungsrechtlich Arbeitsentgelt dar (unabhängig davon, ob nach dem anwendbaren Sozialversicherungsrecht Beiträge darauf entrichtet werden müssen) und werden üblicherweise separat auf der Lohnabrechnung aufgeführt. Werden sie nicht bereits pro in der Schweiz geleistete Arbeitsstunde entrichtet, so sind sie auf die Stunde umzurechnen und zum Grundlohn (Ist-Seite) hinzuzufügen.
A40: 3.4 Vermögenswirksame Leistungen nach deutschem Vermögensbildungsgesetz
A41: Deutsche Arbeitnehmer haben gemäss Vermögensbildungsgesetz das Recht, Teile ihres Lohnes durch ihren Arbeitgeber vermögenswirksam anlegen zu lassen. Die Anlage kann in Form eines Bausparvertrages oder in anderen Anlageformen erfolgen. Die vermögenswirksamen Leistungen werden entweder durch den Arbeitnehmer und/oder den Arbeitgeber finanziert. Die Pflicht des Arbeitgebers zur Zahlung zusätzlicher vermögenswirksamer Leistungen entsteht durch Kollektiv- oder Einzelvereinbarung.
A42: Aufgrund dieser Ausgangslage müssen die vom Arbeitgeber entrichteten und ausgewiesenen vermögenswirksamen Leistungen als Lohnbestandteil betrachtet werden. Sie sind beim Lohnvergleich mit zu berücksichtigen.
A43: Die Umrechnung des monatlichen Beitrags von vermögenswirksamen Leistungen auf einen Beitrag pro Stunde erfolgt analog zur Umrechnung des monatlichen Bruttolohnes auf den Bruttostundenlohn (siehe Ziffer 3.1).
A45: 3.5 Ferienlohn
A46: Auf der Ist-Seite sind die tatsächlich gewährten Ferientage, auf der Soll-Seite die in ave GAV vorgeschriebenen oder die üblicherweise gewährten Ferientage zu berücksichtigen. Die minimale gesetzliche Feriendauer beträgt vier Wochen im Jahr, für Arbeitnehmer bis zum vollendeten 20. Altersjahr mindestens fünf Wochen (Art. 329a OR). Die Ferienentschädigung ist auf dem Grundlohn zuzüglich der vemögenswirksamen Leistungen zu berechnen.
A47: Die Prozentsätze in der folgenden Tabelle sind zur Ferien- und Feiertagsentschädigung heranzuziehen.
A49: 1 Tag = 0.39% 11 Tage = 4.42% 21 Tage = 8.79% 31 Tage = 13.54% 2 Tage = 0.78% 12 Tage = 4.84% 22 Tage = 9.24% 32 Tage = 14.04% 3 Tage = 1.17% 13 Tage = 5.26% 23 Tage = 9.70% 33 Tage = 14.54% 4 Tage = 1.56% 14 Tage = 5.69% 24 Tage = 10.17% 34 Tage = 15.04% 5 Tage = 1.96% 15 Tage = 6.12% 25 Tage = 10.64% 35 Tage = 15.56% 6 Tage = 2.36% 16 Tage = 6.56% 26 Tage = 11.11% 36 Tage = 16.07% 7 Tage = 2.77% 17 Tage = 7.00% 27 Tage = 11.59% 37 Tage = 16.59% 8 Tage = 3.17% 18 Tage = 7.44% 28 Tage = 12.07% 38 Tage = 17.12% 9 Tage = 3.59% 19 Tage = 7.88% 29 Tage = 12.55% 39 Tage = 17.65% 10 Tage = 4.00% 20 Tage = 8.33 % 30 Tage = 13.04% 40 Tage = 18.18%
A51: Ein Jahr hat 365 Tage. Der 365. Tag wird so behandelt, als ob er ein Samstag oder Sonntag wäre. Das Jahr wird mit 52 Wochen gleichgesetzt. Nach Abzug der 104 arbeitsfreien Tage ergibt das 260 Arbeitstage im Jahr. Beispiel: Hat jemand Anspruch auf vier Wochen Ferien (also 20 Arbeitstage), so beträgt der Ferienanspruch im Verhältnis zur Arbeitszeit.
A53: Beispiel: Einem Entsandten stehen in seinem Herkunftsland 30 Tage Ferien pro Jahr zur Verfügung. Ein Schweizer Angestellter in derselben Branche hat ein Anrecht auf 20 Ferientage pro Jahr. Um die Stundenlöhne der beiden Personen vergleichen zu können, muss zum Schweizer Grundlohn ein Anteil des Grundlohns von 0.0833 (8.33%) hinzuaddiert werden. Zur Berechnung des Lohnes auf der Ist-Seite muss zum Grundlohn zuzüglich der vemögenswirksamen Leistungen ein Anteil von 0.1304 (13.04%) davon hinzuaddiert werden.
A58: Deutsche und österreichische Arbeitgeber im Baugewerbe müssen zugunsten ihrer Arbeitnehmer ein Urlaubsentgelt an eine Urlaubskasse entrichten. Dieses Entgelt entspricht dem obligatorischen Ferienlohn in der Schweiz gemäss Artikel 329d OR. Da nach der vorliegend vorgegebenen Berechnungsmethode der Ferienlohn auf der Ist-Seite schon berücksichtigt wird, käme es einer doppelten Anrechnung gleich, wenn das Urlaubsentgelt auf der Ist-Seite aufgeführt würde. Es ist daher grundsätzlich nicht einzubeziehen. Ist jedoch das Urlaubsentgelt höher als der Ferienlohn, so ist der Differenzbetrag auf der Ist-Seite hinzuzurechnen.
A60: Sieht ein ave GAV eine Beitragspflicht an eine Ferienausgleichskasse vor, so ist der Arbeitgeber von der Zahlung von Beiträgen zu befreien, wenn er die Vergütung des Urlaubsentgelts nachweisen kann (Art. 2 Abs. 2 EntsG)
A62: 3.6 Feiertagsentschädigung
A63: Mit Ausnahme des 1. Augusts unterliegen die von den Kantonen bezeichneten Feiertage nicht der Lohnzahlungspflicht. Die Lohnzahlungspflicht an Feiertagen kann jedoch in GAV, NAV oder in Einzelarbeitsverträgen geregelt sein. Die Feiertagsentschädigungen sind deshalb auch beim internationalen Lohnvergleich zu beachten. Dabei ist der Anspruch auf Feiertage während des gesamten Kalenderjahres zu berücksichtigen, nicht nur der Anspruch auf Feiertage während des Einsatzes und unabhängig davon, auf welchen Wochentag der ob der Feiertag auf einen Werktag fällt. Damit wird der Differenz zwischen den in der Schweiz und im Herkunftsstaat gewährten Feiertagen Rechnung getragen.
A64: Analog dem Ferienanspruch sind auf der Ist-Seite die tatsächlich gewährten Feiertage, auf der Soll-Seite die in ave GAV vorgeschriebenen oder die üblicherweise gewährten Feiertage zu berücksichtigen. Die Feiertagsentschädigung ist ebenfalls auf dem Grundlohn zuzüglich der vermögenswirksamen Leistungen zu berechnen.
A65: Im Internet sind unter http://www.feiertagskalender.ch/die in den europäischen Staaten und ihren Regionen geltenden Feiertage abrufbar. Im Zweifelsfall muss der Arbeitgeber die Anzahl Feiertage nachweisen. Auf der Soll-Seite sind die kantonal geltenden Feiertage aufzuführen. Die für die Berechnung der Feiertagsentschädigung massgebenden Prozentsätze entsprechen den oben zur Berechnung der Ferienentschädigung aufgeführten Ansätzen.
A67: 3.7 13. und 14. Monatslohn
A68: Grundsätzlich gilt zu beachten, dass das Entsendegesetz keine neuen Ansprüche zugunsten von Entsandten schafft. Dies bedeutet, dass ein Arbeitgeber nicht generell verpflichtet werden kann, einen 13. Monatslohn zu bezahlen, ohne dass dies im anwendbaren ave GAV/NAV vorgeschrieben wäre. Nur wenn eine zwingende rechtliche Grundlage nach schweizerischem Recht besteht, ist der 13. Monatslohn auf der Soll-Seite aufzuführen.
A69: Vom Grundsatz der zwingenden rechtlichen Grundlage im schweizerischen Recht ist im folgenden Fall abzuweichen: In Präzisierung der Weisung vom 20. Februar 2007 ist der effektiv vergütete 13. und 14. Monatslohn auf der Ist-Seite auch dann zu berücksichtigen, wenn keine entsprechende verbindliche Grundlage nach schweizerischem Recht besteht. Es wäre als stossend zu betrachten, wenn ein Arbeitgeber aufgrund einer Einzelvereinbarung, einer Kollektivvereinbarung oder einer anderen zwingenden Vorschrift im Herkunftsland einen 13. und 14. Monatslohn vergütet, der wegen fehlender verbindlicher Grundlage in der Schweiz aber nicht berücksichtigt werden könnte.
A73: Der 13. Monatslohn ist auf dem Grundlohn zuzüglich der vermögenswirksamen Leistungen sowie der Ferien- und Feiertagsentschädigung zu berechnen. Entspricht der zusätzliche Monatslohn einem vollen Monatsgehalt (100%), so ist ein Betrag von 1/12 (entspricht 8.33%) mal der Summe aus Grundlohn, vermögenswirksamen Leistungen und Feiertags-/Ferienentschädigung zu addieren.
A75: 3.8 Obligatorische Zuschläge für Überstunden, Akkord-, Schicht-, Nacht-, Sonntags- und Feiertagsarbeit
A76: Werden diese Arbeiten in der Schweiz geleistet, so müssen die darauf entfallenden Zuschläge auf der Soll-Seite in die Lohnberechnung miteinbezogen werden. Massgebend sind die obligatorischen Zuschläge gemäss OR und Arbeitsgesetz. Wo eine Regelung in einem ave GAV oder NAV besteht, ist auf diese Zuschläge abzustellen. Kann der Arbeitgeber nachweisen, dass die geleistete Mehrarbeit in der Schweiz oder im Herkunftsland (evtl. mit Zeitzuschlag) kompensiert wird, so entfällt der Zuschlag. Voraussetzung ist aber, dass die Kompensation nach Arbeitsgesetz und anwendbarem ave GAV zulässig ist.
A77: 3.9 Urlaubsgeld / Weihnachtsgeld
A78: Zum Effektiv-Lohn hinzuzuzählen sind auch die insbesondere in Deutschland bekannten Urlaubs- und Weihnachtsgelder. Das Weihnachtsgeld ist ein zusätzliches Entgelt des Arbeitgebers, das in der Regel mit dem Novembergehalt ausbezahlt wird. Der Anspruch kann entstehen aus Tarifvertrag, Arbeitsvertrag, Betriebsvereinbarung oder freiwilliger Leistung des Arbeitgebers. Auf dem Weihnachtsgeld sind Steuern und Sozialabgaben zu entrichten.
A79: Das Urlaubsgeld ist ein zusätzliches Entgelt des Arbeitgebers, das meist mit dem Junigehalt ausbezahlt wird. Der Anspruch darauf kann aus Tarifvertrag, Betriebsvereinbarung und Arbeitsvertrag entstehen.
A80: Beide Leistungen weisen Züge von Sondervergütungen im Sinne von Artikel 322d OR auf. Die Abgrenzung zum 13. Monatslohn ist jedoch fliessend, weshalb die Berücksichtigung beim Lohnvergleich als Gegenstück zum 13. Monatslohn gerechtfertigt ist. Voraussetzung ist, dass der Arbeitgeber diese Zahlungen belegen kann. Da der Zahlungstermin im Juni und Ende Jahr erfolgt, ist auf die Belege von Vorjahreszahlungen abzustützen. Diese Zuwendungen entsprechen zusammengerechnet in der Regel einem 13. Monatsgehalt, also 8.33 Prozent. Auf der Soll-Seite ist der 13. Monatslohn einzusetzen, auf der Ist-Seite das Urlaubs- und Weihnachtsgeld.
A81: 3.11 Wechselkurs
A82: Unter folgendem Link der Eidgenössischen Steuerverwaltung (ESTV) werden monatlich die Durchschnittswechselkurse veröffentlicht: https://www.estv.admin.ch/estv/de/home/mehrwertsteuer/dienstleistungen/fremdwaehrungskurse/monatsmittelkurse/aktueller-monatsmittelkurs.html Der publizierte Monatsmittelkurs zu Beginn des Einsatzes ist massgebend. Bsp: Beginnt ein Einsatz am 14. April 2014, ist der für den Monat April 2014 von der ESTV publizierte Monatsmittelkurs anwendbar (Publikation erfolgt jeweils am 25. des Vormonats). Diese Regelung gilt unabhängig von der Dauer des Einsatzes.
